[Event "14th Vandoeuvre Open 2018"]
[Site "?"]
[Date "2018.01.03"]
[Round "4"]
[White "Comte, Elise"]
[Black "Steininger, Denis"]
[Result "1-0"]
[ECO "A80"]
[WhiteElo "1722"]
[BlackElo "1957"]
[PlyCount "83"]
[EventDate "2018.??.??"]
[EventType "swiss"]
[EventCountry "FRA"]
[SourceTitle "Vandoeuvre"]
[TimeControl "5400+30"]
[WhiteClock "1:13:40"]
[BlackClock "0:16:02"]

1. d4 {[%emt 0:00:00]} f5 {[%emt 0:00:00]} 2. Nf3 {[%emt 0:00:18]} h6 {[%emt 0:00:00]} 3. e3 {[%emt 0:01:50]} Nf6 {[%emt 0:00:00]} 4. Bd3 {[%emt 0:02:56]} e6 {[%emt 0:00:14]} 5. Nbd2 {[%emt 0:02:26]} d5 {[%emt 0:00:12]} 6. Ne5 {[%emt 0:03:10]} Bd6 {[%emt 0:00:06]} 7. f4 {[%emt 0:01:20]} g5 {[%emt 0:01:53]} 8. Be2 {[%emt 0:04:37]} Bxe5 {[%emt 0:00:58]} 9. fxe5 {[%emt 0:03:20]} Ne4 {[%emt 0:00:08]} 10. Bb5+ {[%emt 0:02:34]} c6 {[%emt 0:00:35]} 11. Qh5+ {[%emt 0:00:20]} Kf8 {[%emt 0:00:11]} 12. Nxe4 {[%emt 0:01:34]} dxe4 {[%emt 0:00:13]} 13. Bc4 {[%emt 0:01:12]} Bd7 {[%emt 0:00:27]} 14. Qg6 {[%emt 0:04:46]} Qe7 {[%emt 0:00:14]} 15. O-O {[%emt 0:01:04]} Qg7 {[%emt 0:00:41]} 16. Qh5 {[%emt 0:06:21]} g4 {[%emt 0:00:10]} 17. b3 {[%emt 0:03:21]} Qe7 {[%emt 0:00:44]} 18. Qxg4 {[%emt 0:01:10]} Ke8 {[%emt 0:00:11]} 19. Qg6+ {[%emt 0:04:10]} Kd8 {[%emt 0:00:01]} 20. a4 {[%emt 0:01:10]} b5 {[%emt 0:00:03]} 21. Ba3 {[%emt 0:01:46]} Qe8 {[%emt 0:00:14]} 22. Qf6+ {[%emt 0:02:30]} Kc8 {[%emt 0:00:05]} 23. axb5 {[%emt 0:01:06]} cxb5 {[%emt 0:00:07]} 24. Be2 {[%emt 0:02:25]} Rh7 {[%emt 0:00:14]} 25. c4 {[%emt 0:02:52]} a6 {[%emt 0:00:06]} 26. Bd6 {[%emt 0:01:16]} Kb7 {[%emt 0:00:51]} 27. Rfc1 {[%emt 0:03:02]} Bc6 {[%emt 0:00:33]} 28. Qh4 {[%emt 0:05:19]} Nd7 {[%emt 0:00:58]} 29. Qe1 {[%emt 0:01:01]} Nb6 {[%emt 0:00:49]} 30. Qc3 {[%emt 0:04:06]} Rg7 {[%emt 0:02:07]} 31. cxb5 {[%emt 0:04:57]} axb5 {[%emt 0:02:49]} 32. Rxa8 {[%emt 0:02:18]} Nxa8 {[%emt 0:00:07]} 33. Ra1 {[%emt 0:00:49]} Nb6 {[%emt 0:00:38]} 34. Bc5 {[%emt 0:01:02]} Nc8 {[%emt 0:03:08]} 35. Qa5 {[%emt 0:01:42]} Qg6 {[%emt 0:03:24]} 36. Bf1 {[%emt 0:05:06]} f4 {[%emt 0:02:12]} 37. Qa8+ {[%emt 0:02:18]} Kc7 {[%emt 0:00:29]} 38. Bd6+ {[%emt 0:01:38]} Kd7 {[%emt 0:04:22]} 39. Ra7+ {[%emt 0:01:19]} Nxa7 {[%emt 0:00:15]} 40. Qxa7+ {[%emt 0:00:04]} Ke8 {[%emt 0:00:14]} 41. Qb8+ {[%emt 0:00:26]} Kf7 {[%emt 0:06:07]} 42. Qf8# {[%emt 0:00:17]} 1-0

[Event "14th Vandoeuvre Open 2018"]
[Site "?"]
[Date "2018.01.03"]
[Round "4"]
[White "Grothe, Franz"]
[Black "Pillard, Valentin"]
[Result "0-1"]
[ECO "B23"]
[WhiteElo "1637"]
[BlackElo "1967"]
[PlyCount "84"]
[EventDate "2018.??.??"]
[EventType "swiss"]
[EventCountry "FRA"]
[SourceTitle "Vandoeuvre"]
[TimeControl "5400+30"]
[WhiteClock "0:03:33"]
[BlackClock "0:00:53"]

1. e4 {[%emt 0:00:00]} c5 {[%emt 0:00:00]} 2. Nc3 {[%emt 0:00:00]} Nc6 {[%emt 0:00:00]} 3. f4 {[%emt 0:00:00]} g6 {[%emt 0:00:09]} 4. Nf3 {[%emt 0:00:00]} Bg7 {[%emt 0:00:04]} 5. Bb5 {[%emt 0:00:00]} Nd4 {[%emt 0:01:24]} 6. O-O {[%emt 0:00:03]} Nxb5 {[%emt 0:00:46]} 7. Nxb5 {[%emt 0:00:07]} d6 8. d3 {[%emt 0:01:44]} a6 {[%emt 0:08:34]} 9. Nc3 {[%emt 0:00:08]} b5 {[%emt 0:00:07]} 10. Qe1 {[%emt 0:11:08]} b4 {[%emt 0:08:59]} 11. Ne2 {[%emt 0:02:51]} Nf6 {[%emt 0:09:04]} 12. Qh4 {[%emt 0:11:36]} c4 {[%emt 0:07:14]} 13. Be3 {[%emt 0:03:38]} Qa5 {[%emt 0:12:19]} 14. Bd4 {[%emt 0:10:25]} cxd3 {[%emt 0:07:53]} 15. cxd3 {[%emt 0:02:11]} O-O {[%emt 0:00:36]} 16. h3 {[%emt 0:18:21]} Qh5 {[%emt 0:01:23]} 17. Qe1 {[%emt 0:01:35]} a5 {[%emt 0:04:08]} 18. f5 {[%emt 0:03:40]} gxf5 {[%emt 0:18:57]} 19. Ng3 {[%emt 0:00:52]} Qh6 {[%emt 0:00:01]} 20. Nxf5 {[%emt 0:07:46]} Bxf5 {[%emt 0:00:08]} 21. exf5 {[%emt 0:00:13]} Nd5 {[%emt 0:00:11]} 22. Qe4 {[%emt 0:03:06]} Bxd4+ {[%emt 0:01:05]} 23. Nxd4 {[%emt 0:00:24]} Qe3+ {[%emt 0:00:46]} 24. Kh1 {[%emt 0:02:19]} Qxe4 {[%emt 0:00:26]} 25. dxe4 {[%emt 0:00:11]} Nf6 {[%emt 0:00:17]} 26. Rfe1 {[%emt 0:01:04]} Rfc8 {[%emt 0:04:10]} 27. e5 {[%emt 0:00:29]} dxe5 {[%emt 0:00:16]} 28. Rxe5 {[%emt 0:00:13]} Rc4 {[%emt 0:00:10]} 29. Nb3 {[%emt 0:07:24]} a4 {[%emt 0:01:14]} 30. Rc5 {[%emt 0:03:13]} Rf4 {[%emt 0:02:08]} 31. Nd2 {[%emt 0:02:20]} Rf2 {[%emt 0:01:24]} 32. Nc4 {[%emt 0:00:13]} a3 {[%emt 0:04:03]} 33. bxa3 {[%emt 0:01:36]} bxa3 {[%emt 0:00:08]} 34. Ra5 {[%emt 0:01:52]} Rxa5 {[%emt 0:01:33]} 35. Nxa5 {[%emt 0:00:05]} Rc2 {[%emt 0:00:08]} 36. Nb3 {[%emt 0:01:17]} Ne4 {[%emt 0:00:52]} 37. Nd4 {[%emt 0:01:32]} Rb2 {[%emt 0:00:28]} 38. Re1 {[%emt 0:04:12]} Nc3 {[%emt 0:03:20]} 39. Re3 {[%emt 0:00:23]} Nb1 {[%emt 0:01:05]} 40. Re1 {[%emt 0:00:51]} Nd2 {[%emt 0:00:27]} 41. Re2 {[%emt 0:00:35]} Rb1+ {[%emt 0:01:00]} 42. Kh2 Nf1+ 0-1

[Event "14th Vandoeuvre Open 2018"]
[Site "?"]
[Date "2018.01.03"]
[Round "4"]
[White "Jeanclaude, Bruno"]
[Black "Rauta, Nicolas"]
[Result "0-1"]
[ECO "B13"]
[WhiteElo "1625"]
[BlackElo "1963"]
[PlyCount "58"]
[EventDate "2018.??.??"]
[EventType "swiss"]
[EventCountry "FRA"]
[SourceTitle "Vandoeuvre"]
[TimeControl "5400+30"]
[WhiteClock "0:47:52"]
[BlackClock "1:11:40"]

1. e4 {[%emt 0:00:00]} c6 {[%emt 0:00:00]} 2. d4 {[%emt 0:00:00]} d5 {[%emt 0:00:00]} 3. exd5 {[%emt 0:00:00]} cxd5 {[%emt 0:00:00]} 4. c4 {[%emt 0:00:00]} dxc4 {[%emt 0:00:00]} 5. Bxc4 {[%emt 0:00:06]} Nf6 {[%emt 0:00:01]} 6. Nc3 {[%emt 0:00:32]} e6 {[%emt 0:00:11]} 7. Nf3 {[%emt 0:00:28]} Be7 {[%emt 0:01:11]} 8. d5 {[%emt 0:02:36]} exd5 {[%emt 0:04:16]} 9. Nxd5 {[%emt 0:01:08]} Nxd5 {[%emt 0:06:27]} 10. Qxd5 {[%emt 0:01:29]} Qxd5 {[%emt 0:14:24]} 11. Bxd5 {[%emt 0:00:08]} Bb4+ {[%emt 0:00:15]} 12. Bd2 {[%emt 0:00:33]} Bxd2+ {[%emt 0:00:31]} 13. Nxd2 {[%emt 0:07:45]} O-O {[%emt 0:02:00]} 14. O-O {[%emt 0:02:36]} Rd8 {[%emt 0:08:44]} 15. Rfe1 {[%emt 0:04:32]} Kf8 {[%emt 0:00:46]} 16. Rac1 {[%emt 0:02:07]} Na6 {[%emt 0:00:26]} 17. Rxc8 {[%emt 0:03:09]} Raxc8 {[%emt 0:01:19]} 18. Bxb7 {[%emt 0:01:02]} Rc2 {[%emt 0:00:39]} 19. Bxa6 {[%emt 0:00:33]} Rdxd2 {[%emt 0:06:48]} 20. Bb5 {[%emt 0:00:57]} g6 {[%emt 0:00:39]} 21. h4 {[%emt 0:01:26]} Rxf2 {[%emt 0:00:51]} 22. h5 {[%emt 0:00:11]} Rxg2+ {[%emt 0:00:31]} 23. Kh1 {[%emt 0:00:06]} Rh2+ {[%emt 0:00:09]} 24. Kg1 {[%emt 0:00:04]} Rxh5 {[%emt 0:03:21]} 25. a4 {[%emt 0:00:47]} Rxb2 {[%emt 0:01:06]} 26. Re8+ {[%emt 0:00:14]} Kg7 {[%emt 0:00:15]} 27. Re7 {[%emt 0:00:05]} Rhxb5 {[%emt 0:01:33]} 28. axb5 {[%emt 0:00:11]} Rxb5 {[%emt 0:00:04]} 29. Rxa7 {[%emt 0:00:05]} Rb2 {[%emt 0:00:11]} 0-1

[Event "14th Vandoeuvre Open 2018"]
[Site "?"]
[Date "2018.01.04"]
[Round "5"]
[White "Riou Durand, Lionel"]
[Black "Oney, Remel"]
[Result "0-1"]
[ECO "A00"]
[WhiteElo "1898"]
[BlackElo "1828"]
[PlyCount "122"]
[EventDate "2018.??.??"]
[EventType "swiss"]
[EventCountry "FRA"]
[SourceTitle "Vandoeuvre"]
[TimeControl "5400+30"]
[WhiteClock "0:01:31"]
[BlackClock "0:00:39"]

1. e3 {[%emt 0:00:00]} Nf6 {[%emt 0:00:58]} 2. f4 {[%emt 0:00:09]} g6 {[%emt 0:00:27]} 3. Nf3 {[%emt 0:00:19]} Bg7 {[%emt 0:00:05]} 4. Be2 {[%emt 0:00:42]} d5 {[%emt 0:00:24]} 5. O-O {[%emt 0:00:11]} O-O {[%emt 0:00:04]} 6. d3 {[%emt 0:00:19]} c5 {[%emt 0:00:35]} 7. Ne5 {[%emt 0:03:54]} Qc7 {[%emt 0:03:10]} 8. Bf3 {[%emt 0:07:44]} e6 {[%emt 0:03:15]} 9. e4 {[%emt 0:02:12]} d4 {[%emt 0:04:35]} 10. a4 {[%emt 0:01:22]} Bd7 {[%emt 0:04:38]} 11. Nd2 {[%emt 0:08:47]} Nc6 {[%emt 0:05:34]} 12. Ndc4 {[%emt 0:02:16]} Ne8 {[%emt 0:04:18]} 13. Nxc6 {[%emt 0:16:47]} Bxc6 {[%emt 0:00:27]} 14. Qe1 {[%emt 0:00:09]} Bxa4 {[%emt 0:09:06]} 15. Rxa4 {[%emt 0:06:47]} b5 {[%emt 0:03:37]} 16. e5 {[%emt 0:04:32]} Rb8 {[%emt 0:01:26]} 17. Ra6 {[%emt 0:02:37]} bxc4 {[%emt 0:00:31]} 18. Rc6 {[%emt 0:05:11]} Qe7 {[%emt 0:04:40]} 19. dxc4 {[%emt 0:00:41]} Rb6 {[%emt 0:02:05]} 20. Qa5 {[%emt 0:01:00]} Rxc6 {[%emt 0:03:16]} 21. Bxc6 {[%emt 0:00:09]} g5 {[%emt 0:02:53]} 22. Rf3 {[%emt 0:02:27]} gxf4 {[%emt 0:04:00]} 23. Bxf4 {[%emt 0:00:38]} f6 {[%emt 0:11:10]} 24. exf6 {[%emt 0:00:10]} Nxf6 {[%emt 0:00:48]} 25. Be5 {[%emt 0:12:14]} Ng4 {[%emt 0:05:33]} 26. Bxg7 {[%emt 0:00:40]} Kxg7 {[%emt 0:04:35]} 27. Qe1 {[%emt 0:08:29]} Rxf3 {[%emt 0:03:37]} 28. Bxf3 {[%emt 0:00:06]} Ne3 {[%emt 0:01:24]} 29. Qe2 {[%emt 0:00:31]} Qg5 {[%emt 0:01:23]} 30. Qd2 {[%emt 0:07:58]} Qe5 {[%emt 0:02:55]} 31. Qe2 {[%emt 0:01:06]} Qf5 {[%emt 0:01:10]} 32. c3 {[%emt 0:01:30]} e5 {[%emt 0:01:06]} 33. cxd4 {[%emt 0:00:25]} exd4 {[%emt 0:00:23]} 34. h3 {[%emt 0:02:41]} Qb1+ {[%emt 0:01:41]} 35. Kf2 {[%emt 0:00:34]} Qc1 {[%emt 0:05:16]} 36. Bd5 {[%emt 0:01:11]} Nd1+ {[%emt 0:01:19]} 37. Kg3 {[%emt 0:00:51]} Qg5+ 38. Kh2 Qf4+ {[%emt 0:02:22]} 39. g3 {[%emt 0:01:22]} Qf2+ {[%emt 0:00:39]} 40. Qxf2 {[%emt 0:00:02]} Nxf2 {[%emt 0:00:02]} 41. Kg2 {[%emt 0:00:18]} Nd3 {[%emt 0:00:24]} 42. b3 {[%emt 0:00:43]} Nc1 {[%emt 0:00:49]} 43. b4 {[%emt 0:00:50]} cxb4 {[%emt 0:00:33]} 44. c5 {[%emt 0:00:04]} Kf6 {[%emt 0:00:39]} 45. Kf3 {[%emt 0:00:43]} Ke5 {[%emt 0:01:21]} 46. Be4 {[%emt 0:00:35]} h6 {[%emt 0:01:23]} 47. g4 {[%emt 0:00:52]} b3 {[%emt 0:00:34]} 48. h4 {[%emt 0:00:24]} b2 {[%emt 0:00:24]} 49. c6 {[%emt 0:00:41]} Kd6 {[%emt 0:01:59]} 50. Bb1 {[%emt 0:00:11]} Kxc6 {[%emt 0:00:16]} 51. g5 {[%emt 0:00:03]} hxg5 {[%emt 0:00:26]} 52. h5 {[%emt 0:00:31]} g4+ {[%emt 0:00:35]} 53. Kg3 {[%emt 0:01:08]} d3 {[%emt 0:00:28]} 54. h6 {[%emt 0:00:10]} d2 {[%emt 0:00:25]} 55. h7 {[%emt 0:00:31]} d1=Q {[%emt 0:00:19]} 56. Be4+ {[%emt 0:00:44]} Kd6 {[%emt 0:00:45]} 57. h8=Q {[%emt 0:00:08]} Qg1+ {[%emt 0:00:47]} 58. Kf4 {[%emt 0:00:06]} Ne2+ {[%emt 0:00:14]} 59. Kf5 {[%emt 0:01:30]} Qc5+ {[%emt 0:00:34]} 60. Kg6 {[%emt 0:00:26]} Nf4+ {[%emt 0:00:19]} 61. Kf7 {[%emt 0:00:30]} Qc7+ {[%emt 0:00:18]} 0-1

[Event "14th Vandoeuvre Open 2018"]
[Site "?"]
[Date "2018.01.04"]
[Round "5"]
[White "Budak, Rezan"]
[Black "Comte, Elise"]
[Result "0-1"]
[ECO "C24"]
[WhiteElo "1870"]
[BlackElo "1722"]
[PlyCount "60"]
[EventDate "2018.??.??"]
[EventType "swiss"]
[EventCountry "FRA"]
[SourceTitle "Vandoeuvre"]
[TimeControl "5400+30"]
[WhiteClock "0:09:05"]
[BlackClock "0:22:55"]

1. e4 {[%emt 0:12:47]} e5 {[%emt 0:00:00]} 2. Bc4 {[%emt 0:01:10]} Nf6 {[%emt 0:01:11]} 3. d4 {[%emt 0:00:29]} Nc6 {[%emt 0:02:20]} 4. Nf3 {[%emt 0:00:57]} Be7 {[%emt 0:12:28]} 5. Nxe5 {[%emt 0:01:34]} O-O {[%emt 0:02:32]} 6. Nxf7 {[%emt 0:16:27]} Rxf7 {[%emt 0:01:33]} 7. Bxf7+ {[%emt 0:00:05]} Kxf7 {[%emt 0:00:09]} 8. e5 {[%emt 0:00:04]} Ne8 {[%emt 0:03:16]} 9. O-O {[%emt 0:01:13]} d5 {[%emt 0:03:42]} 10. c3 {[%emt 0:03:29]} g6 {[%emt 0:02:19]} 11. Be3 {[%emt 0:03:47]} Ng7 {[%emt 0:04:45]} 12. g4 {[%emt 0:00:16]} Be6 {[%emt 0:05:57]} 13. h3 {[%emt 0:00:44]} Qd7 {[%emt 0:02:46]} 14. Nd2 {[%emt 0:01:53]} Rh8 {[%emt 0:09:08]} 15. Kg2 {[%emt 0:00:52]} h5 {[%emt 0:03:44]} 16. f3 {[%emt 0:00:05]} Ke8 {[%emt 0:00:33]} 17. Nb3 {[%emt 0:00:32]} hxg4 {[%emt 0:00:57]} 18. hxg4 {[%emt 0:00:03]} Rh4 {[%emt 0:06:06]} 19. Rh1 {[%emt 0:00:10]} Rxh1 {[%emt 0:02:56]} 20. Kxh1 {[%emt 0:00:07]} b6 {[%emt 0:02:47]} 21. Qe2 {[%emt 0:07:39]} Bh4 {[%emt 0:05:02]} 22. Bh6 {[%emt 0:07:45]} Kf7 {[%emt 0:06:15]} 23. Kg2 {[%emt 0:02:41]} Ne7 {[%emt 0:02:50]} 24. Rh1 {[%emt 0:01:07]} g5 {[%emt 0:00:38]} 25. Bxg7 {[%emt 0:05:00]} Kxg7 {[%emt 0:00:12]} 26. Kf1 {[%emt 0:07:55]} Ng6 {[%emt 0:01:51]} 27. Qe3 {[%emt 0:02:00]} Qa4 {[%emt 0:05:36]} 28. Nc1 {[%emt 0:00:50]} Qd1+ {[%emt 0:02:37]} 29. Kg2 {[%emt 0:00:13]} Nf4+ {[%emt 0:00:43]} 30. Qxf4 {[%emt 0:00:11]} Qc2+ {[%emt 0:01:02]} 0-1

[Event "14th Vandoeuvre Open 2018"]
[Site "?"]
[Date "2018.01.04"]
[Round "5"]
[White "Bat, Bilguun"]
[Black "Schmitt, Axel"]
[Result "0-1"]
[ECO "A46"]
[WhiteElo "1809"]
[BlackElo "2323"]
[PlyCount "87"]
[EventDate "2018.??.??"]
[EventType "swiss"]
[EventCountry "FRA"]
[SourceTitle "Vandoeuvre"]
[TimeControl "5400+30"]
[WhiteClock "0:25:24"]
[BlackClock "0:21:51"]

1. d4 {[%emt 0:00:23]} Nf6 {[%emt 0:00:00]} 2. Nf3 {[%emt 0:00:07]} e6 {[%emt 0:00:00]} 3. e3 {[%emt 0:00:39]} b6 {[%emt 0:01:03]} 4. Bd3 {[%emt 0:00:06]} Bb7 {[%emt 0:00:05]} 5. O-O {[%emt 0:00:07]} Be7 {[%emt 0:00:01]} 6. b3 {[%emt 0:00:09]} O-O {[%emt 0:00:14]} 7. Bb2 {[%emt 0:00:03]} c5 {[%emt 0:00:11]} 8. Nbd2 {[%emt 0:00:05]} d5 {[%emt 0:00:45]} 9. Ne5 {[%emt 0:00:29]} Nc6 {[%emt 0:00:09]} 10. f4 {[%emt 0:00:07]} Rc8 {[%emt 0:00:54]} 11. a3 {[%emt 0:00:15]} Qc7 {[%emt 0:05:28]} 12. Rc1 {[%emt 0:01:48]} Rfd8 {[%emt 0:06:04]} 13. Qe2 {[%emt 0:00:59]} Nxe5 {[%emt 0:09:18]} 14. fxe5 {[%emt 0:00:40]} Ne4 {[%emt 0:00:07]} 15. Bxe4 {[%emt 0:10:32]} dxe4 {[%emt 0:00:08]} 16. c4 {[%emt 0:02:00]} Bg5 {[%emt 0:06:36]} 17. h4 {[%emt 0:01:28]} Bxh4 {[%emt 0:07:01]} 18. Qg4 {[%emt 0:02:49]} Qe7 {[%emt 0:00:40]} 19. Nxe4 {[%emt 0:01:07]} Bxe4 {[%emt 0:00:59]} 20. Qxe4 {[%emt 0:00:05]} Bg5 {[%emt 0:00:10]} 21. Rcd1 {[%emt 0:04:27]} h6 {[%emt 0:02:03]} 22. Rf3 {[%emt 0:01:49]} Rd7 {[%emt 0:02:49]} 23. Rff1 {[%emt 0:14:31]} f6 24. exf6 {[%emt 0:12:50]} Bxf6 {[%emt 0:18:01]} 25. a4 {[%emt 0:01:46]} Rcd8 {[%emt 0:00:16]} 26. Ba3 {[%emt 0:00:39]} Qe8 {[%emt 0:00:54]} 27. Qg4 {[%emt 0:00:43]} Bg5 {[%emt 0:04:16]} 28. Rf3 {[%emt 0:02:21]} Qg6 {[%emt 0:02:13]} 29. Kh1 {[%emt 0:04:54]} Kh7 {[%emt 0:07:29]} 30. Re1 {[%emt 0:13:24]} cxd4 {[%emt 0:01:04]} 31. exd4 {[%emt 0:00:35]} Rxd4 {[%emt 0:00:42]} 32. Qxe6 {[%emt 0:00:38]} Qxe6 {[%emt 0:01:35]} 33. Rxe6 {[%emt 0:00:10]} Bf4 {[%emt 0:00:36]} 34. Kg1 {[%emt 0:01:14]} Rd1+ {[%emt 0:00:16]} 35. Kf2 {[%emt 0:00:07]} Bg5 {[%emt 0:01:06]} 36. Bb4 {[%emt 0:01:17]} R1d3 {[%emt 0:00:35]} 37. Be7 {[%emt 0:02:06]} Rxf3+ {[%emt 0:00:53]} 38. gxf3 {[%emt 0:00:26]} Re8 {[%emt 0:00:07]} 39. Bxg5 {[%emt 0:00:32]} Rxe6 {[%emt 0:00:01]} 40. Be3 {[%emt 0:00:34]} Kg6 {[%emt 0:00:15]} 41. b4 {[%emt 0:00:27]} Rc6 {[%emt 0:00:47]} 42. c5 {[%emt 0:00:06]} bxc5 {[%emt 0:00:07]} 43. Bxc5 {[%emt 0:00:05]} a5 {[%emt 0:00:08]} 44. Ke1 0-1

[Event "14th Vandoeuvre Open 2018"]
[Site "?"]
[Date "2018.01.04"]
[Round "5"]
[White "Barbelenet, Frederic"]
[Black "Rittie, Daniel"]
[Result "1-0"]
[ECO "B02"]
[WhiteElo "1764"]
[BlackElo "1944"]
[PlyCount "81"]
[EventDate "2018.??.??"]
[EventType "swiss"]
[EventCountry "FRA"]
[SourceTitle "Vandoeuvre"]
[TimeControl "5400+30"]
[WhiteClock "0:01:27"]
[BlackClock "0:01:49"]

1. e4 {[%emt 0:00:00]} Nf6 {[%emt 0:00:00]} 2. Nc3 {[%emt 0:00:10]} d5 {[%emt 0:00:00]} 3. exd5 {[%emt 0:03:48]} Nxd5 {[%emt 0:00:00]} 4. Nxd5 {[%emt 0:02:07]} Qxd5 {[%emt 0:00:00]} 5. Nf3 {[%emt 0:00:25]} Bg4 {[%emt 0:00:11]} 6. Be2 {[%emt 0:00:05]} e6 {[%emt 0:00:16]} 7. O-O {[%emt 0:00:57]} Be7 {[%emt 0:04:13]} 8. d4 {[%emt 0:02:14]} O-O {[%emt 0:04:25]} 9. Bf4 {[%emt 0:00:26]} c6 {[%emt 0:03:40]} 10. Re1 {[%emt 0:12:28]} Nd7 {[%emt 0:03:42]} 11. h3 {[%emt 0:01:41]} Bf5 {[%emt 0:03:11]} 12. Bd3 {[%emt 0:02:03]} Bxd3 {[%emt 0:01:48]} 13. Qxd3 {[%emt 0:00:07]} Nf6 {[%emt 0:00:34]} 14. c4 {[%emt 0:05:13]} Qa5 {[%emt 0:00:35]} 15. a3 Rfe8 {[%emt 0:14:02]} 16. Rad1 {[%emt 0:09:30]} Rad8 {[%emt 0:06:05]} 17. Qb3 {[%emt 0:04:50]} Qa6 {[%emt 0:03:23]} 18. Ne5 {[%emt 0:01:47]} Nd7 {[%emt 0:12:13]} 19. c5 {[%emt 0:15:16]} Nxe5 {[%emt 0:00:38]} 20. Bxe5 {[%emt 0:02:49]} Rd7 {[%emt 0:02:26]} 21. Re4 {[%emt 0:07:19]} Qb5 {[%emt 0:11:55]} 22. Qc2 {[%emt 0:09:40]} Bf8 {[%emt 0:06:00]} 23. b4 {[%emt 0:00:18]} a5 {[%emt 0:01:25]} 24. Qb3 {[%emt 0:00:11]} axb4 {[%emt 0:00:25]} 25. axb4 {[%emt 0:00:52]} Ra8 {[%emt 0:00:51]} 26. Kh2 {[%emt 0:00:37]} Be7 {[%emt 0:05:51]} 27. Rg4 {[%emt 0:01:02]} g6 {[%emt 0:00:44]} 28. Re4 {[%emt 0:00:06]} Qa4 {[%emt 0:01:32]} 29. Rb1 {[%emt 0:01:11]} Qb5 {[%emt 0:00:38]} 30. g4 {[%emt 0:00:53]} Rd5 {[%emt 0:04:35]} 31. Qc3 {[%emt 0:06:52]} Rdd8 {[%emt 0:01:28]} 32. Qb3 {[%emt 0:05:06]} Rd7 {[%emt 0:01:52]} 33. f4 {[%emt 0:00:42]} Rd5 {[%emt 0:03:42]} 34. f5 {[%emt 0:02:13]} exf5 {[%emt 0:01:08]} 35. gxf5 {[%emt 0:00:21]} Bf8 {[%emt 0:00:58]} 36. fxg6 {[%emt 0:02:23]} fxg6 {[%emt 0:01:02]} 37. Qf3 {[%emt 0:00:33]} Bg7 {[%emt 0:01:26]} 38. Bxg7 {[%emt 0:00:24]} Kxg7 {[%emt 0:00:02]} 39. Re7+ {[%emt 0:00:18]} Kh6 {[%emt 0:01:11]} 40. Qf4+ {[%emt 0:01:14]} Kh5 {[%emt 0:00:26]} 41. Rxh7# 1-0

[Event "14th Vandoeuvre Open 2018"]
[Site "?"]
[Date "2018.01.04"]
[Round "6"]
[White "Schmitt, Axel"]
[Black "Barbelenet, Frederic"]
[Result "1-0"]
[ECO "B50"]
[WhiteElo "2323"]
[BlackElo "1764"]
[PlyCount "77"]
[EventDate "2018.??.??"]
[EventType "swiss"]
[EventCountry "FRA"]
[SourceTitle "Vandoeuvre"]
[TimeControl "5400+30"]
[WhiteClock "0:02:31"]
[BlackClock "0:51:43"]

1. e4 {[%emt 0:00:00]} c5 {[%emt 0:00:00]} 2. Nf3 {[%emt 0:00:00]} d6 {[%emt 0:00:00]} 3. c3 {[%emt 0:00:00]} Nf6 {[%emt 0:00:00]} 4. Be2 {[%emt 0:00:00]} Bd7 {[%emt 0:00:27]} 5. d3 {[%emt 0:00:00]} g6 {[%emt 0:05:57]} 6. O-O {[%emt 0:01:33]} Bg7 {[%emt 0:01:38]} 7. Re1 {[%emt 0:00:10]} Nc6 {[%emt 0:00:10]} 8. h3 {[%emt 0:00:11]} O-O {[%emt 0:02:47]} 9. Bf1 {[%emt 0:00:24]} Rc8 {[%emt 0:12:13]} 10. Na3 {[%emt 0:01:22]} Qc7 {[%emt 0:05:32]} 11. Bf4 {[%emt 0:03:33]} Nh5 {[%emt 0:05:10]} 12. Bh2 {[%emt 0:00:31]} f5 {[%emt 0:00:24]} 13. exf5 {[%emt 0:00:27]} gxf5 {[%emt 0:03:32]} 14. Ng5 {[%emt 0:00:36]} Nf6 {[%emt 0:13:10]} 15. Qb3+ {[%emt 0:02:06]} Kh8 {[%emt 0:13:14]} 16. Nf7+ {[%emt 0:00:55]} Rxf7 {[%emt 0:00:02]} 17. Qxf7 {[%emt 0:00:08]} Rf8 {[%emt 0:00:08]} 18. Qb3 {[%emt 0:00:07]} e5 {[%emt 0:01:17]} 19. Bg3 {[%emt 0:09:30]} f4 {[%emt 0:02:59]} 20. Bh4 {[%emt 0:00:45]} Rg8 {[%emt 0:01:33]} 21. Nb5 {[%emt 0:04:10]} Qb8 {[%emt 0:00:18]} 22. Bxf6 {[%emt 0:04:24]} Bxf6 {[%emt 0:00:08]} 23. Qf7 {[%emt 0:06:55]} Qd8 {[%emt 0:03:09]} 24. Nxd6 {[%emt 0:03:31]} Rg7 {[%emt 0:05:33]} 25. Qh5 {[%emt 0:01:17]} Qf8 {[%emt 0:01:44]} 26. Ne4 {[%emt 0:00:52]} Be7 {[%emt 0:00:55]} 27. Rad1 {[%emt 0:01:59]} f3 {[%emt 0:06:46]} 28. Re3 {[%emt 0:05:27]} fxg2 {[%emt 0:09:15]} 29. Bxg2 {[%emt 0:01:01]} Qg8 {[%emt 0:01:33]} 30. Rg3 {[%emt 0:01:01]} Rxg3 {[%emt 0:01:01]} 31. Nxg3 {[%emt 0:00:28]} Be8 {[%emt 0:01:31]} 32. Qe2 {[%emt 0:01:04]} Qg5 {[%emt 0:02:21]} 33. Re1 {[%emt 0:00:51]} Bd7 {[%emt 0:00:26]} 34. Bxc6 {[%emt 0:00:38]} Bxc6 {[%emt 0:00:01]} 35. Qxe5+ {[%emt 0:00:12]} Bf6 {[%emt 0:00:10]} 36. Qxg5 {[%emt 0:00:17]} Bxg5 {[%emt 0:00:01]} 37. Re5 {[%emt 0:00:19]} Bc1 {[%emt 0:01:20]} 38. Rxc5 {[%emt 0:00:42]} Bxb2 {[%emt 0:00:04]} 39. d4 {[%emt 0:00:21]} 1-0

[Event "14th Vandoeuvre Open 2018"]
[Site "?"]
[Date "2018.01.04"]
[Round "6"]
[White "Rauta, Nicolas"]
[Black "Budak, Rezan"]
[Result "1/2-1/2"]
[ECO "A25"]
[WhiteElo "1963"]
[BlackElo "1870"]
[PlyCount "71"]
[EventDate "2018.??.??"]
[EventType "swiss"]
[EventCountry "FRA"]
[SourceTitle "Vandoeuvre"]
[TimeControl "5400+30"]
[WhiteClock "1:02:31"]
[BlackClock "0:16:56"]

1. c4 e5 {[%emt 0:00:21]} 2. Nc3 {[%emt 0:02:02]} Nc6 {[%emt 0:00:10]} 3. g3 {[%emt 0:00:08]} g6 {[%emt 0:00:29]} 4. Bg2 {[%emt 0:00:04]} Bg7 {[%emt 0:00:07]} 5. d3 {[%emt 0:00:37]} Nge7 {[%emt 0:00:15]} 6. e4 {[%emt 0:01:10]} Nd4 {[%emt 0:00:14]} 7. Nge2 {[%emt 0:00:19]} Nec6 {[%emt 0:00:25]} 8. O-O {[%emt 0:07:59]} O-O {[%emt 0:00:43]} 9. Nxd4 {[%emt 0:03:13]} Nxd4 {[%emt 0:01:37]} 10. Ne2 {[%emt 0:06:05]} d6 {[%emt 0:02:10]} 11. Nxd4 {[%emt 0:01:22]} exd4 {[%emt 0:02:16]} 12. f4 {[%emt 0:01:13]} f5 {[%emt 0:00:42]} 13. exf5 {[%emt 0:07:48]} gxf5 {[%emt 0:00:09]} 14. b4 {[%emt 0:01:15]} c6 {[%emt 0:05:14]} 15. b5 {[%emt 0:12:21]} Qc7 {[%emt 0:02:00]} 16. Bd2 {[%emt 0:06:11]} Be6 {[%emt 0:04:03]} 17. Qa4 {[%emt 0:01:53]} d5 {[%emt 0:00:47]} 18. cxd5 {[%emt 0:18:20]} Bxd5 {[%emt 0:01:02]} 19. Bxd5+ {[%emt 0:04:18]} cxd5 {[%emt 0:00:22]} 20. Rac1 {[%emt 0:00:11]} Qd7 {[%emt 0:00:23]} 21. Qb3 {[%emt 0:00:26]} Rac8 {[%emt 0:00:09]} 22. a4 {[%emt 0:01:28]} Rfe8 {[%emt 0:02:34]} 23. Rfe1 {[%emt 0:01:02]} Rxc1 {[%emt 0:03:55]} 24. Rxc1 {[%emt 0:01:08]} Re2 {[%emt 0:00:45]} 25. Be1 {[%emt 0:03:30]} Qe6 {[%emt 0:00:26]} 26. Bf2 {[%emt 0:00:37]} Rxf2 {[%emt 0:00:12]} 27. Kxf2 {[%emt 0:00:05]} Qe3+ {[%emt 0:00:06]} 28. Kg2 {[%emt 0:00:09]} Qxc1 {[%emt 0:03:17]} 29. Qxd5+ {[%emt 0:00:10]} Kf8 {[%emt 0:00:12]} 30. Qxf5+ {[%emt 0:02:55]} Kg8 {[%emt 0:02:11]} 31. Qd5+ {[%emt 0:00:34]} Kf8 {[%emt 0:00:34]} 32. Qd8+ {[%emt 0:00:25]} Kf7 {[%emt 0:00:36]} 33. Qd7+ {[%emt 0:00:29]} Kf8 {[%emt 0:03:05]} 34. Qd8+ {[%emt 0:01:04]} Kf7 {[%emt 0:00:59]} 35. Qd7+ {[%emt 0:00:03]} Kf8 {[%emt 0:02:29]} 36. Qd8+ 1/2-1/2